bitfinex/quotes_ETHUSD_20250822
["timestamp","ask_amount","ask_price","bid_price","bid_amount"]
[1755843385615,0.36212296,4322.2,4322.0,0.62885802]
[1755843385938,4.018,4322.2,4322.0,0.62885802]
[1755843386451,3.0048,4322.1,4322.0,0.62885802]
[1755843386952,3.0,4322.1,4322.0,0.62885802]
[1755843387245,3.0048,4322.1,4322.0,0.62885802]
[1755843389340,3.36692366,4322.1,4322.0,0.62885802]
[1755843389713,3.36992366,4322.1,4322.0,0.62885802]
[1755843389913,5.07885366,4322.1,4322.0,0.62885802]
[1755843390517,0.36212366,4322.1,4322.0,0.62885802]
[1755843390738,7.37812366,4322.1,4322.0,0.62885802]
[1755843391609,7.38292366,4322.1,4322.0,0.62885802]
[1755843392636,7.38092366,4322.1,4322.0,0.62885802]
[1755843392814,7.0188,4322.1,4322.0,0.62885802]
[1755843393016,3.0048,4322.1,4322.0,0.62885802]
[1755843393216,7.0188,4322.1,4322.0,0.62885802]
[1755843396123,7.647658,4322.1,4322.0,0.62885802]
[1755843396332,22.53087043,4322.1,4322.0,0.62885802]
[1755843396671,33.0,4322.0,4319.9,0.4488]
[1755843396954,3.0,4321.3,4319.9,0.4488]
[1755843397159,3.0,4321.1,4319.9,0.4488]
[1755843397324,3.0,4321.1,4319.8,0.02]
[1755843397325,0.0048,4320.5,4319.8,0.02]
[1755843397514,7.0148,4320.5,4319.8,0.02]
[1755843397911,7.110627,4320.5,4319.8,0.02]
[1755843398146,33.0,4320.4,4319.8,0.02]
[1755843398357,17.88501243,4319.9,4319.8,0.02]
[1755843398560,22.03701243,4319.9,4319.8,0.02]
[1755843398713,7.1568,4319.9,4319.8,0.02]
[1755843398915,7.1558,4319.9,4319.8,0.02]
[1755843399936,22.03601243,4319.9,4319.8,0.02]
[1755843400162,22.03901243,4319.9,4319.8,0.02]
[1755843400465,22.03601243,4319.9,4319.8,0.02]
[1755843400626,18.02801243,4319.9,4319.8,0.02]
[1755843400961,22.03901243,4319.9,4319.8,0.02]
[1755843401119,22.03601243,4319.9,4319.8,0.02]
[1755843401316,22.03501243,4319.9,4319.8,0.02]
[1755843401750,18.02501243,4319.9,4319.8,0.02]
[1755843402021,7.1568,4319.9,4319.8,0.02]
[1755843402223,3.14,4319.9,4319.8,0.021]
[1755843402424,7.153,4319.9,4319.8,0.021]
[1755843402718,7.013,4319.9,4319.8,0.021]
[1755843402919,7.0178,4319.9,4319.8,0.021]
[1755843403128,7.013,4319.9,4319.8,0.021]
[1755843403332,7.013,4319.9,4319.8,0.7857]
[1755843404117,3.0,4319.9,4319.8,0.7857]
[1755843404326,2.14240555,4320.3,4319.8,0.7857]
[1755843404525,4.015,4320.2,4319.9,0.4651]
[1755843405221,4.015,4320.2,4319.8,0.021]
[1755843406026,3.0,4320.1,4319.8,0.021]
[1755843406336,4.016,4320.0,4319.8,0.021]
[1755843406547,4.016,4319.9,4319.8,0.021]
[1755843407061,4.015,4319.9,4319.8,0.7857]
[1755843407438,1.78,4320.3,4319.9,2.21486801]
[1755843407758,4.015,4320.2,4319.9,0.4651]
[1755843407956,4.015,4320.2,4320.0,0.4651]
[1755843408254,4.015,4320.2,4320.1,0.4651]
[1755843408828,4.015,4320.2,4319.8,0.021]
[1755843409759,3.0,4320.1,4319.8,0.021]
[1755843409959,4.4801,4320.2,4320.1,0.2996]
[1755843409960,0.5651,4320.2,4320.1,0.2996]
[1755843410160,4.125,4320.2,4320.1,0.7647]
[1755843410588,4.125,4320.2,4320.1,0.2996]
[1755843410771,4.125,4320.2,4319.9,0.66]
[1755843410957,4.48731532,4320.2,4319.9,0.66]
[1755843411140,4.48731532,4320.2,4320.0,0.4651]
[1755843411626,4.48731532,4320.2,4319.8,0.021]
[1755843411962,4.48731532,4320.2,4319.9,0.4651]
[1755843412260,4.48731532,4320.2,4319.8,0.021]
[1755843412448,3.0,4320.1,4319.8,0.021]
[1755843412656,3.0048,4319.9,4319.8,0.021]
[1755843414180,4.024,4320.0,4319.8,0.021]
[1755843414181,3.0,4320.0,4319.8,0.021]
[1755843414391,4.026,4319.9,4319.8,0.021]
[1755843415254,4.0308,4319.9,4319.8,0.021]
[1755843416756,7.0308,4319.9,4319.8,0.021]
[1755843416958,7.0338,4319.9,4319.8,0.021]
[1755843417691,3.0,4319.8,4319.5,0.001]
[1755843417861,3.0048,4319.6,4319.5,0.001]
[1755843418497,3.100665,4319.6,4319.5,0.001]
[1755843419261,4.120665,4319.6,4319.5,0.001]
[1755843419686,4.119665,4319.6,4319.5,0.001]
[1755843420462,7.119665,4319.6,4318.9,0.001]
[1755843420671,17.88021243,4319.0,4318.9,0.001]
[1755843420998,21.90601243,4319.0,4318.9,0.001]
[1755843421419,18.24749606,4319.0,4318.9,0.001]
[1755843421894,22.36237206,4319.0,4318.9,0.001]
[1755843422406,33.0,4318.9,4317.9,0.001]
[1755843422603,22.36237206,4319.0,4317.9,0.001]
[1755843422604,14.88501243,4318.0,4317.9,0.001]
[1755843422764,23.68801243,4318.0,4317.9,0.001]
[1755843423370,24.51566735,4318.0,4317.9,0.001]
[1755843423911,24.62678827,4318.0,4317.9,0.001]
[1755843424267,20.48886735,4318.0,4317.9,0.001]
[1755843424463,24.51186735,4318.0,4317.9,0.001]
[1755843424665,24.51666735,4318.0,4317.9,0.001]
[1755843424864,24.51186735,4318.0,4317.9,0.001]
[1755843425875,24.51666735,4318.0,4317.9,0.001]
[1755843426208,24.15411243,4318.0,4317.9,0.001]
[1755843427394,20.13111243,4318.0,4317.9,0.001]
[1755843427797,20.12631243,4318.0,4317.9,0.001]
[1755843427999,24.14731243,4318.0,4317.9,0.001]
[1755843428310,24.15211243,4318.0,4317.9,0.001]
[1755843428967,3.0,4317.9,4317.8,0.02]
[1755843429198,3.0048,4317.9,4317.8,0.02]
[1755843429702,3.0,4317.0,4316.8,0.02]
[1755843429878,8.803,4316.9,4316.8,0.02]
[1755843430078,8.803,4316.9,4316.8,0.3315]
[1755843430483,8.803,4316.9,4316.8,0.02]
[1755843430803,8.803,4316.9,4316.8,0.7852]
[1755843431109,5.14460309,4316.9,4316.8,0.7852]
[1755843431315,9.16460309,4316.9,4316.8,0.7852]
[1755843432782,9.16660309,4316.9,4316.8,0.7852]
[1755843433604,9.16560309,4316.9,4316.8,0.7852]
[1755843433792,9.16043921,4316.9,4316.8,0.7852]
[1755843434486,9.15843921,4316.9,4316.8,0.7852]
[1755843434870,9.15843921,4316.9,4316.8,0.02]
[1755843435081,9.15843921,4316.9,4316.8,0.7852]
[1755843435693,5.13943921,4316.9,4316.8,0.7852]
[1755843435894,9.15743921,4316.9,4316.8,0.7852]
[1755843437376,9.15643921,4316.9,4316.8,0.7852]
[1755843437986,9.15543921,4316.9,4316.8,0.7852]
[1755843439130,9.15543921,4316.9,4316.8,0.02]
[1755843439692,9.15543921,4316.9,4316.8,0.4737]
[1755843440193,9.15543921,4316.9,4316.8,0.02]
[1755843440488,8.79763612,4316.9,4316.8,0.02]
[1755843440695,8.79843612,4316.9,4316.8,0.02]
[1755843441494,4.78243612,4316.9,4316.8,0.02]
[1755843441693,8.79643612,4316.9,4316.8,0.02]
[1755843443384,33.0,4316.8,4316.3,0.001]
[1755843443585,17.88501243,4316.4,4316.3,0.001]
[1755843443784,21.89701243,4316.4,4316.3,0.001]
[1755843444085,22.25972513,4316.4,4316.3,0.001]
[1755843444591,18.24772513,4316.4,4316.3,0.001]
[1755843444809,22.25392513,4316.4,4316.3,0.001]
[1755843445193,18.24292513,4316.4,4316.3,0.001]
[1755843445384,22.25692513,4316.4,4316.3,0.001]
[1755843446119,22.25692513,4316.4,4316.3,0.4547]
[1755843446718,22.25592513,4316.4,4316.3,0.4547]
[1755843446986,7.3747127,4316.4,4316.3,0.7662]
[1755843447920,7.012,4316.4,4316.3,0.7662]
[1755843448089,7.0168,4316.4,4316.3,0.001]
[1755843449134,7.0168,4316.4,4316.3,0.7662]
[1755843449135,3.0,4316.4,4316.3,0.7662]
[1755843449290,7.013,4316.4,4316.3,0.7662]
[1755843449496,7.37565065,4316.4,4316.3,0.7662]
[1755843450142,3.36265065,4316.4,4316.3,0.7662]
[1755843450429,7.37565065,4316.4,4316.3,0.7662]
[1755843450932,3.36265065,4316.4,4316.3,0.7662]
[1755843451095,7.37465065,4316.4,4316.3,0.7662]
[1755843451522,7.37465065,4316.4,4316.3,0.4547]
[1755843451724,7.37465065,4316.4,4316.3,0.7662]
[1755843451725,0.36265065,4316.4,4316.3,0.7662]
[1755843451927,4.011,4316.6,4316.3,0.7662]
[1755843452227,4.011,4316.6,4316.4,0.4537]
[1755843452524,4.011,4316.6,4316.5,0.7652]
[1755843453527,21.98551243,4316.6,4316.3,0.001]
[1755843453822,3.0,4316.5,4316.3,0.001]
[1755843454028,0.097,4316.4,4316.3,0.001]
[1755843454194,4.109,4316.4,4316.3,0.001]
[1755843455326,7.109,4316.4,4316.3,0.001]
[1755843456226,7.009,4316.4,4316.3,0.7662]
[1755843456597,7.009,4316.4,4316.3,0.001]
[1755843459610,7.009,4316.4,4316.3,0.3005]
[1755843459792,7.005,4316.4,4316.3,0.001]
[1755843460329,7.004,4316.4,4316.3,0.001]
[1755843460822,7.007,4316.4,4316.3,0.001]
[1755843461593,3.0,4316.3,4315.8,0.021]
[1755843461899,17.97721243,4315.9,4315.8,0.021]
[1755843462226,23.76721243,4315.9,4315.8,0.021]
[1755843462407,24.12993517,4315.9,4315.8,0.021]
[1755843463739,24.49023517,4315.9,4315.8,0.021]
[1755843464231,24.99021315,4315.9,4315.8,0.021]
[1755843464729,33.0,4315.8,4315.4,0.001]
[1755843464929,0.302,4315.5,4315.4,0.001]
[1755843465133,7.307,4315.5,4315.4,0.001]
[1755843465432,7.80684258,4315.5,4315.4,0.001]
[1755843465738,7.96414258,4315.5,4315.4,0.001]
[1755843467103,8.39564258,4315.5,4315.4,0.001]
[1755843467435,3.0,4315.4,4314.8,0.02]
[1755843467634,17.88021243,4314.9,4314.8,0.02]
[1755843467933,23.66421243,4314.9,4314.8,0.02]
[1755843468105,23.66521243,4314.9,4314.8,0.751]
[1755843469840,23.66521243,4314.9,4314.8,0.3195]
[1755843470035,19.66321243,4314.9,4314.8,0.02]
[1755843470338,8.782,4314.9,4314.8,0.751]
[1755843470947,1.783,4314.9,4314.8,0.751]
[1755843471237,5.783,4314.9,4314.8,1.411]
[1755843471428,8.783,4314.9,4314.8,1.411]
[1755843472943,8.783,4314.9,4314.8,0.751]
[1755843473239,8.7913,4314.9,4314.8,0.02]
[1755843473608,8.783,4314.9,4314.8,0.02]
[1755843474844,4.783,4314.9,4314.8,0.02]
[1755843475047,8.783,4314.9,4314.8,0.02]
[1755843475256,4.783,4314.9,4314.8,0.3195]
[1755843475460,8.783,4314.9,4314.8,0.751]
[1755843475771,8.781,4314.9,4314.8,0.751]
[1755843476261,8.781,4314.9,4314.8,0.3195]
[1755843476418,8.781,4314.9,4314.8,0.751]
[1755843476419,4.783,4314.9,4314.8,0.751]
[1755843476751,8.783,4314.9,4314.8,0.751]
[1755843476950,8.783,4314.9,4314.8,0.02]
[1755843478253,8.8819,4314.9,4314.8,0.02]
[1755843478859,8.779,4314.9,4314.8,0.02]
[1755843479050,8.779,4314.9,4314.8,0.3195]
[1755843479253,8.779,4314.9,4314.8,0.02]
[1755843479559,8.779,4314.9,4314.8,0.3195]
[1755843479766,8.878,4314.9,4314.8,0.02]
[1755843480124,8.779,4314.9,4314.8,0.02]
[1755843480334,8.78,4314.9,4314.8,0.3195]
[1755843480632,4.783,4314.9,4314.8,0.3195]
[1755843480849,8.78,4314.9,4314.8,0.751]
[1755843481063,8.78,4314.9,4314.8,0.02]
[1755843481437,8.879,4314.9,4314.8,0.02]
[1755843481652,8.78,4314.9,4314.8,0.3195]
[1755843481855,4.783,4314.9,4314.8,0.02]
[1755843482043,8.784,4314.9,4314.8,0.02]
[1755843482951,8.883,4314.9,4314.8,0.02]
[1755843483732,4.882,4314.9,4314.8,0.02]
[1755843483935,8.883,4314.9,4314.8,0.02]
[1755843484778,8.783,4314.9,4314.8,0.02]
[1755843485078,8.882,4314.9,4314.8,0.02]
[1755843486357,8.882,4314.9,4314.8,0.021]
[1755843486570,8.783,4314.9,4314.8,0.021]
[1755843487350,8.8846,4314.9,4314.8,0.021]
[1755843487551,3.0,4314.8,4314.3,0.001]
[1755843487753,3.0,4314.4,4314.3,0.001]
[1755843487953,6.995,4314.4,4314.3,0.001]
[1755843489064,7.35781384,4314.4,4314.3,0.001]
[1755843489246,7.36141384,4314.4,4314.3,0.001]
[1755843490045,7.36141384,4314.4,4314.3,0.3137]
[1755843490046,3.36281384,4314.4,4314.3,0.3137]
[1755843490291,7.35581384,4314.4,4314.3,0.7776]
[1755843491374,7.64391384,4314.4,4314.3,0.001]
[1755843491875,3.65091384,4314.4,4314.3,0.001]
[1755843492076,7.64291384,4314.4,4314.3,0.001]
[1755843493341,7.35481384,4314.4,4314.3,0.3137]
[1755843493540,0.36281384,4314.4,4314.3,0.7776]
[1755843493756,4.35381384,4314.4,4314.3,0.7776]
[1755843493955,4.35741384,4314.4,4314.3,0.001]
[1755843494368,4.35741384,4314.4,4314.3,0.7776]
[1755843494369,4.35581384,4314.4,4314.3,0.7776]
[1755843495547,4.35581384,4314.4,4314.3,0.3137]
[1755843495768,4.35581384,4314.4,4314.3,0.001]
[1755843495983,4.45481384,4314.4,4314.3,0.001]
[1755843497189,0.36281384,4314.4,4314.3,0.001]
[1755843497378,4.35481384,4314.4,4314.3,0.7776]
[1755843497687,0.36281384,4314.4,4314.3,0.7776]
[1755843497992,7.35381384,4314.4,4314.3,0.7776]
[1755843498300,13.94831793,4314.4,4314.3,0.001]
[1755843498993,13.94831793,4314.4,4314.3,0.3137]
[1755843499293,13.94831793,4314.4,4314.3,0.7776]
[1755843500193,15.73131793,4314.4,4314.3,0.7776]
[1755843502551,11.74031793,4314.4,4314.3,0.7776]
[1755843502752,15.36450409,4314.4,4314.3,0.7776]
[1755843502956,15.36450409,4314.4,4314.3,0.3137]
[1755843503175,15.36450409,4314.4,4314.3,0.001]
[1755843503799,15.36450409,4314.4,4314.3,0.7776]
[1755843504100,8.77,4314.4,4314.3,0.7776]
[1755843504259,15.36450409,4314.4,4314.3,0.7776]
[1755843504460,15.72731269,4314.4,4314.3,0.7776]
[1755843506216,15.36450409,4314.4,4314.3,0.7776]
[1755843506915,4.783,4314.4,4314.3,0.7776]
[1755843507264,5.765,4314.4,4314.3,1.4376]
[1755843509408,2.14577943,4314.4,4314.3,1.4376]
[1755843509619,6.12777943,4314.4,4314.3,1.4376]
[1755843509790,6.12677943,4314.4,4314.3,1.4376]
[1755843511101,0.36277943,4314.4,4314.3,3.75547311]
[1755843511413,0.36277943,4314.4,4314.3,4.13333846]
[1755843511570,0.002,4314.8,4314.6,0.66]
[1755843511770,0.002,4314.8,4314.7,3.29035823]
[1755843512193,0.002,4314.8,4314.7,3.75425823]
[1755843512610,0.002,4314.8,4314.7,1.4366]
[1755843513371,0.002,4314.8,4314.7,3.75425823]
[1755843514012,0.002,4314.8,4314.7,4.36145923]
[1755843515029,0.002,4314.8,4314.7,4.38463581]
[1755843515191,0.002,4314.8,4314.7,7.50063581]
[1755843515387,0.002,4314.8,4314.7,7.47745923]
[1755843516194,1e-08,4314.8,4314.7,7.47745923]
[1755843516393,1e-08,4314.8,4314.7,11.45445923]
[1755843517205,1e-08,4314.8,4314.7,14.32166623]
[1755843517408,1e-08,4314.8,4314.7,14.43766623]
[1755843518022,0.002,4315.5,4315.4,2.97728229]
[1755843518189,0.002,4315.5,4315.4,12.6903461]
[1755843518394,0.002,4315.5,4315.4,13.1457461]
[1755843520325,0.002,4315.5,4315.4,9.1697461]
[1755843520495,0.002,4315.5,4315.4,13.1417461]
[1755843522040,0.002,4315.5,4315.4,9.1697461]
[1755843522207,0.002,4315.5,4315.4,13.1417461]
[1755843523102,0.002,4315.5,4315.4,13.0237461]
[1755843523333,0.002,4315.5,4315.4,9.1697461]
[1755843523536,0.002,4315.5,4315.4,13.1397461]
[1755843523716,0.002,4315.5,4315.4,9.1697461]
[1755843523916,0.002,4315.5,4315.4,8.37988229]
[1755843524328,0.101,4315.5,4314.9,2.31750983]
[1755843524534,0.101,4315.5,4315.0,2.31749466]
[1755843525057,0.002,4315.5,4315.4,0.3086]
[1755843525352,0.002,4315.5,4315.4,7.25888229]
[1755843525507,0.002,4315.5,4315.4,8.71744802]
[1755843527707,0.002,4315.5,4315.4,4.08444802]
[1755843527913,0.002,4315.5,4315.4,7.05828229]
[1755843528846,0.002,4315.5,4315.4,6.29328229]
[1755843529038,0.101,4315.5,4315.4,6.29328229]
[1755843529217,0.002,4315.5,4315.4,6.29328229]
[1755843529415,0.002,4315.5,4314.3,0.001]
[1755843529735,14.91167544,4314.4,4313.4,0.001]
[1755843529909,3.0,4315.1,4313.7,0.4554]
[1755843530307,3.0,4315.1,4313.8,2.33913549]
[1755843530523,3.0,4315.1,4313.8,0.021]
[1755843531023,0.36276258,4314.8,4313.8,0.021]
[1755843531225,0.36276258,4314.8,4313.8,2.33913312]
[1755843531424,0.36276258,4314.8,4314.0,2.31798223]
[1755843531825,0.36276258,4314.8,4314.1,0.66]
[1755843532224,0.36276258,4314.8,4313.9,0.66]
[1755843532438,3.0,4314.5,4313.8,0.021]
[1755843533645,6.99,4314.5,4313.8,0.021]
[1755843533835,3.0,4314.5,4313.8,0.021]
[1755843534034,3.0,4314.5,4313.8,0.681]
[1755843534721,3.0,4314.5,4313.8,0.021]
[1755843535447,3.0,4314.5,4313.8,0.681]
[1755843535935,3.0,4314.5,4313.9,0.66]
[1755843536547,3.0,4314.5,4314.0,0.66]
[1755843536846,3.0,4314.5,4313.8,0.021]
[1755843538449,3.986,4314.4,4313.9,0.66]
[1755843538746,3.986,4314.4,4313.8,0.681]
[1755843538951,3.986,4314.4,4313.8,2.99912629]
[1755843539423,0.36278715,4314.3,4313.8,0.681]
[1755843539817,3.36278715,4314.3,4313.8,0.021]
[1755843540237,3.36278715,4314.3,4313.8,0.681]
[1755843540442,3.36278715,4314.3,4314.0,2.978009]
[1755843540647,0.36278715,4314.3,4314.2,3.28652684]
[1755843540820,1.783,4315.4,4314.3,0.66]
[1755843541020,0.36274961,4315.2,4315.0,0.66]
[1755843541338,0.36274961,4315.2,4314.8,0.66]
[1755843541656,0.36274961,4315.2,4315.0,0.66]
[1755843542024,0.36274961,4315.2,4314.8,0.66]
[1755843542220,0.36274961,4315.2,4315.0,0.66]
[1755843542622,0.36274961,4315.2,4314.9,0.66]
[1755843542952,3.0,4315.0,4313.8,0.4764]
[1755843543157,3.0,4314.8,4313.8,0.021]
[1755843544052,0.36280456,4314.6,4313.8,0.021]
[1755843544243,3.0,4314.4,4313.8,0.021]
[1755843546962,3.0,4313.7,4313.0,0.001]
[1755843547161,3.0,4313.3,4311.4,0.12229134]
[1755843547563,3.0,4313.3,4311.4,0.001]
[1755843547729,17.91167544,4312.4,4311.4,0.001]
[1755843548065,23.70667544,4312.4,4311.4,2.32043048]
[1755843548535,8.794,4312.4,4311.7,0.4348]
[1755843548863,8.793,4312.4,4311.8,0.68]
[1755843549063,4.783,4312.4,4311.8,0.68]
[1755843549229,8.794,4312.4,4312.1,0.66]
[1755843550156,8.794,4312.4,4311.8,0.02]
[1755843551364,9.15697154,4312.4,4311.8,0.02]
[1755843552442,9.16097154,4312.4,4311.8,0.02]
[1755843553979,5.14597154,4312.4,4311.8,0.02]
[1755843554183,9.16097154,4312.4,4311.8,0.02]
[1755843554838,5.14597154,4312.4,4311.9,2.31913922]
[1755843555044,5.14597154,4312.4,4312.0,0.4348]
[1755843555045,9.15697154,4312.4,4312.0,0.4348]
[1755843555245,9.15697154,4312.4,4311.8,0.021]
[1755843555681,8.794,4312.4,4311.8,0.021]
[1755843556057,8.794,4312.4,4311.8,0.4558]
[1755843556945,8.794,4312.4,4311.8,0.021]
[1755843557980,9.15697296,4312.4,4311.8,0.021]
[1755843560985,5.14597296,4312.4,4311.8,0.021]
[1755843561187,9.15097296,4312.4,4311.8,0.021]
[1755843561801,5.14597296,4312.4,4312.3,0.3081]
[1755843561966,9.15297296,4312.4,4312.3,0.7429]
[1755843562168,6.15297296,4312.4,4312.3,0.7429]
[1755843562484,2.14597296,4312.4,4312.3,0.7429]
[1755843562865,6.15297296,4312.4,4312.3,0.7429]
[1755843563278,6.15297296,4312.4,4312.3,0.001]
[1755843563477,6.15297296,4312.4,4312.3,0.4358]
[1755843564085,6.15297296,4312.4,4312.3,0.7429]
[1755843564267,2.14597296,4312.4,4312.3,0.7429]
[1755843564601,6.15297296,4312.4,4312.3,0.7429]
[1755843565111,2.14597296,4312.4,4312.3,0.7429]
[1755843565271,6.15297296,4312.4,4312.3,0.7429]
[1755843565467,0.36297296,4312.4,4312.3,4.02804866]
[1755843565867,0.36297296,4312.4,4312.3,1.70910054]
[1755843566211,0.36297296,4312.4,4312.3,3.72184812]
[1755843566411,0.36297296,4312.4,4312.3,1.4029]
[1755843566711,0.36297296,4312.4,4312.3,3.72184812]
[1755843567967,1.784,4313.1,4312.5,2.97884057]
[1755843568170,1.784,4313.1,4313.0,0.3071]
[1755843568401,5.787,4313.1,4313.0,0.7419]
[1755843568615,5.788,4313.1,4313.0,0.7419]
[1755843570015,6.15088494,4313.1,4313.0,0.7419]
[1755843571195,6.15288494,4313.1,4313.0,0.7419]
[1755843572321,6.14688494,4313.1,4313.0,1.4019]
[1755843572488,6.14788494,4313.1,4313.0,1.4019]
[1755843572690,6.14788494,4313.1,4313.0,3.72047175]
[1755843572888,6.14688494,4313.1,4313.0,3.72047175]
[1755843573735,6.14588494,4313.1,4313.0,3.72047175]
[1755843574237,0.36488494,4313.1,4313.0,3.72047175]
[1755843574442,0.36488494,4313.1,4313.0,1.4019]
[1755843574925,0.36488494,4313.1,4313.0,3.72047175]
[1755843576664,0.002,4313.1,4313.0,3.72047175]
[1755843576830,0.002,4313.1,4313.0,4.32670496]
[1755843577234,0.002,4313.1,4313.0,4.34989067]
[1755843577652,0.002,4313.1,4313.0,4.32670496]
[1755843580759,0.002,4313.1,4313.0,4.34989067]
[1755843581056,0.002,4313.1,4313.0,4.32670496]
[1755843587385,0.002,4313.1,4313.0,8.30870496]
[1755843600316,0.002,4313.1,4313.0,14.9028709]
[1755843600520,1e-08,4313.1,4313.0,18.01997196]
[1755843600673,1e-08,4313.1,4313.0,20.3458709]
[1755843600869,1e-08,4313.1,4313.0,17.9028709]
[1755843601972,1e-08,4313.1,4313.0,26.8699339]
[1755843602274,1e-08,4313.6,4313.5,2.978303]
[1755843602600,1e-08,4313.6,4313.5,12.3315333]
[1755843602767,1e-08,4313.6,4313.5,12.8997333]
[1755843606907,0.002,4314.5,4313.5,12.8997333]
[1755843606908,0.02,4316.8,4315.3,0.66]
[1755843607080,0.02,4316.8,4315.4,7.26819212]
[1755843607275,0.02,4316.8,4315.4,7.5464193]
[1755843607576,0.02,4316.8,4315.4,10.2450193]
[1755843607905,6.59616594,4316.3,4315.4,0.66]
[1755843608093,6.59616594,4316.3,4313.8,2.443]
[1755843608094,6.59416594,4315.9,4315.2,2.31737814]
[1755843608295,6.59416594,4315.9,4315.0,3.974]
[1755843608593,6.59416594,4315.9,4315.2,0.66]
[1755843608972,6.59616594,4315.5,4315.1,0.66]
[1755843609307,6.59616594,4315.5,4315.0,0.66]
[1755843609478,0.002,4315.5,4315.0,2.97744784]
[1755843609679,0.002,4315.5,4314.5,0.66]
[1755843609874,0.002,4315.5,4315.0,0.66]
[1755843610211,0.002,4315.5,4315.4,2.97728229]
[1755843610390,0.002,4315.5,4315.4,0.66]
[1755843611197,0.002,4315.5,4315.2,0.66]
[1755843612609,0.002,4315.5,4315.2,0.68317389]
[1755843612912,0.002,4315.5,4315.4,0.66]
[1755843613084,0.002,4315.5,4315.2,0.66]
[1755843613408,0.002,4315.5,4315.1,0.66]
[1755843613788,0.002,4315.5,4314.9,2.31750718]
[1755843614113,0.002,4315.5,4315.0,2.97745512]
[1755843615014,0.002,4315.5,4315.0,0.66]
[1755843615616,0.002,4315.5,4315.0,2.97749256]
[1755843616220,0.002,4315.5,4315.0,0.66]
[1755843616821,0.002,4315.5,4315.1,0.02317443]
[1755843617028,0.002,4315.5,4315.3,0.66]
[1755843617394,0.002,4315.5,4315.2,0.66]
[1755843618324,0.002,4315.5,4315.3,0.66]
[1755843618705,0.002,4315.5,4315.2,0.66]
[1755843619628,0.002,4315.5,4315.0,0.66]
[1755843620597,0.002,4315.5,4315.0,1.1117]
[1755843621003,0.002,4315.5,4315.0,0.66]
[1755843623152,0.002,4315.5,4315.0,1.1117]
[1755843623853,0.002,4315.5,4315.2,0.66]
[1755843624554,0.002,4315.5,4315.3,0.66]
[1755843624918,0.002,4315.5,4315.2,0.4517]
[1755843625929,0.002,4315.5,4315.0,0.66]
[1755843626136,0.002,4315.5,4315.1,0.4517]
[1755843626336,0.002,4315.5,4315.2,0.66]
[1755843626536,0.002,4315.5,4315.0,0.66]
[1755843626742,0.002,4315.5,4315.2,0.4517]
[1755843627145,0.002,4315.5,4315.0,2.97749293]
[1755843627458,0.002,4315.5,4315.3,0.4517]
[1755843627860,0.002,4315.5,4315.4,0.768]
[1755843628743,0.002,4315.5,4315.4,0.4517]
[1755843629156,0.002,4315.5,4315.4,0.768]
[1755843632477,0.002,4315.5,4315.4,1.428]
[1755843632670,0.002,4315.5,4315.4,3.89039973]
[1755843633453,0.002,4315.5,4315.4,3.91357255]
[1755843634679,0.02,4315.8,4315.6,3.0]
[1755843634977,1e-08,4315.7,4315.6,16.87373661]
[1755843635143,1e-08,4315.8,4315.7,5.9771212]
[1755843635342,1e-08,4315.8,4315.7,18.76986783]
[1755843636343,1e-08,4315.8,4315.7,13.26911283]
[1755843637575,0.002,4316.3,4316.2,2.97685278]
[1755843637775,0.002,4316.3,4316.2,15.65541127]
[1755843637979,0.002,4316.3,4316.2,17.44107989]
[1755843638179,0.002,4316.3,4316.2,21.25095289]
[1755843638673,0.002,4316.3,4316.2,19.98378089]
[1755843639347,0.002,4316.3,4316.2,17.86927989]
[1755843641488,1e-08,4316.3,4316.2,33.97311089]
[1755843641692,1e-08,4316.3,4316.2,31.01752789]
[1755843642389,1e-08,4316.3,4316.2,26.14874689]
[1755843643389,1e-08,4316.3,4316.2,26.24159789]
[1755843644319,1e-08,4316.3,4316.2,25.08287789]
[1755843647517,1e-08,4316.3,4316.2,24.66719289]
[1755843648012,0.02,4316.8,4316.2,28.95719289]
[1755843648178,1e-08,4316.4,4316.3,14.45017274]
[1755843648374,1e-08,4316.4,4316.3,15.29917274]
[1755843648573,1e-08,4316.4,4316.3,14.57638074]
[1755843649807,1e-08,4316.4,4316.3,20.51546371]
[1755843650007,1e-08,4316.4,4316.3,18.35976071]
[1755843653909,1e-08,4316.4,4316.3,22.64976071]
[1755843655571,1e-08,4316.4,4316.3,13.04973874]
[1755843655775,1e-08,4316.4,4316.3,16.04993874]
[1755843655976,1e-08,4316.4,4316.3,16.35473874]
[1755843656172,1e-08,4316.4,4316.3,17.44293874]
[1755843656377,1e-08,4316.4,4316.3,16.47813874]
[1755843656577,1e-08,4316.4,4316.3,16.04993874]
[1755843656785,1e-08,4316.4,4316.3,16.70993874]
[1755843657004,1e-08,4316.4,4316.3,6.72279911]
[1755843657189,1e-08,4316.4,4316.3,10.68779911]
[1755843657411,1e-08,4316.4,4316.3,10.57179911]
[1755843657787,1e-08,4316.4,4316.3,11.23179911]
[1755843658811,1e-08,4316.4,4316.3,14.96479911]
[1755843659104,1e-08,4316.4,4316.3,16.2543643]